Cogmind - Beta 15 @@@ ROGUE MODE // 2025.05.09 @ 17:36:39 Player: Anting Result: Destroyed by C8-9GE(R) with Subdweller Laser Performance ------------- Evolutions (0) 0 Regions Visited (2) 400 Robots Destroyed (22) 110 Value Destroyed (566) 566 Prototype IDs (11) 220 Alien Tech Used (0) 0 Bonus (0) 0 TOTAL SCORE: 1296 Bonus ------- None Cogmind --------- Core Integrity 0/250 Matter 235/300 Energy 23/250 System Corruption 0% Temperature Cool (6) Movement Rolling (230) Ox10 Location -10/Subcaves Parts ------- > --- POWER (1) -------- Ion Engine > --- PROPULSION (2) --- Wheel Wheel > --- UTILITY (2) ------ Humpback > --- WEAPON (2) ------- Battle Rifle Battle Cannon > --- INVENTORY (35) --- Arachnoskeleton Subdweller Monowheel Disposable Heat Sink Medium Storage Unit Subdweller Optics Makeshift Thermal Plating Makeshift System Shield Cobbler Unit Subdweller Laser Subdweller Laser Subdweller Beam Cannon Subdweller Beam Cannon Light Assault Rifle Battle Rifle Subdweller Machine Gun Grenade Launcher Multitool Scrap Shield Fragment (47) Scrap Shield Fragment (31) Peak State ------------ > --- POWER ------------ Subdweller Power Source > --- PROPULSION ------- Light Treads Wheel > --- UTILITY ---------- Humpback > --- WEAPON ----------- Battle Rifle Battle Cannon > --- INVENTORY -------- Ion Engine Arachnoskeleton Subdweller Monowheel Disposable Heat Sink Medium Storage Unit Subdweller Optics Makeshift Thermal Plating Makeshift System Shield Cobbler Unit Subdweller Laser Subdweller Beam Cannon Subdweller Beam Cannon Light Assault Rifle Battle Rifle Subdweller Machine Gun Battle Cannon Grenade Launcher Multitool Scrap Shield Fragment Scrap Shield Fragment [Rating: 16] Favorites ----------- Power Subdweller Power Source Engine Subdweller Power Source Propulsion Light Treads Treads Light Treads Wheel Wheel Utility Humpback Device Improved Heat Sink Storage Humpback Protection Makeshift Thermal Plating Weapon Battle Rifle Energy Gun Medium Laser Ballistic Gun Battle Rifle Ballistic Cannon Battle Cannon Special Weapon Multitool Build | -11 -10 -10 ------- Run | Yrd Mat Sub Slots Evolved . | . . . Power . | . . . Propulsion . | . . . Utility . | . . . Weapon . | . . . Parts Attached 23 | 7 1 15 Power 3 | 1 . 2 Engine 3 | 1 . 2 Core . | . . . Reactor . | . . . Propulsion 5 | 2 . 3 Treads 2 | 2 . . Leg . | . . . Wheel 3 | . . 3 Hover . | . . . Flight . | . . . Utility 6 | 2 1 3 Device 2 | 1 . 1 Storage 3 | 1 1 1 Processor . | . . . Hackware . | . . . Protection 1 | . . 1 Artifact . | . . . Weapon 9 | 2 . 7 Energy Gun 1 | 1 . . Energy Cannon . | . . . Ballistic Gun 5 | 1 . 4 Ballistic Cannon 2 | . . 2 Launcher . | . . . Special Weapon 1 | . . 1 Impact Weapon . | . . . Slashing Weapon . | . . . Piercing Weapon . | . . . Special Melee Weapon . | . . . Unidentified Prototypes . | . . . Parts Lost 10 | . . 10 Power 2 | . . 2 Propulsion 3 | . . 3 Utility 1 | . . 1 Weapon 4 | . . 4 Highest Loss Streak 3 | . . 3 To Critical Strikes . | . . . Average Backups 14 | 3 6 16 Power . | . . . Propulsion 2 | 2 3 2 Utility 3 | . . 4 Weapon 6 | . 2 7 Tool/Special . | . . . Unused Backups 16 | . . 16 Power . | . . . Propulsion 4 | . . 4 Utility 4 | . . 4 Weapon 7 | . . 7 Tool/Special 1 | . . 1 Average Slot Usage (%) 79 | . 98 77 Engine 8 | . 13 8 Treads 12 | . 28 11 Wheel 11 | . . 12 Device 2 | . 14 1 Storage 14 | . 14 14 Energy Gun 1 | . 14 . Ballistic Gun 19 | . 14 19 Ballistic Cannon 7 | . . 7 Peak Build Rating 16 | 7 7 16 Average Rating 12 | 5 6 13 On Entrance 4 | . 7 7 Naked Turns . | . . . Heaviest Build 210 | 14 19 210 Greatest Support 40 | 40 40 40 Greatest Overweight (x) 20 | . . 20 Average Overweight (x) 10 | . . 13 Largest Inventory Capacity 35 | 8 10 35 Average Capacity 27 | 7 8 30 Most Carried 26 | 4 7 26 Average Carried 17 | 3 6 20 Final Capacity 35 | 8 10 35 Final Carried 22 | 4 7 22 Class Distribution -------------------- 72% | Hauler-Mutant 27% | Mutant Dominant Class ---------------- Mutant | -10/Materials Hauler-Mutant | -10/Subcaves Resources | -11 -10 -10 ----------- Run | Yrd Mat Sub Matter Collected 631 | 287 18 326 Remotely . | . . . Salvage Created 662 | 83 45 534 Parts 48 | 11 5 32 Haulers Intercepted . | . . . Recyclers Shooed 1 | . 1 . Parts Field Recycled . | . . . Retrieved Matter . | . . . Parts Self-Destructed 14 | . . 14 Prevented . | . . . Kills | -11 -10 -10 ------- Run | Yrd Mat Sub Combat Hostiles Destroyed 17 | . 3 14 Guns 16 | . 3 13 Cannons 1 | . . 1 Classes Destroyed 4 | 1 1 2 Tunneler 5 | 5 . . Swarmer 5 | . 3 2 Grunt 2 | . . 2 Subdweller 10 | . . 10 Best Kill Streak 3 | 2 2 3 Combat Bots Only 3 | . 2 3 Max Kills in Single Turn 1 | 1 1 1 Gunslinging . | . . . Exploded . | . . . Melee . | . . . Uniques/NPCs Destroyed . | . . . Combat | -11 -10 -10 -------- Run | Yrd Mat Sub Hostile Shots Fired 120 | . 38 82 Missed 28 | . 10 18 Hits 92 | . 28 64 Projectile 92 | . 28 64 Damage Taken 1569 | . 216 1353 Core 257 | . 33 224 Absorbed by Shields . | . . . Ignored by Resistances 6 | . . 6 Core Remaining (%) 100 | 100 . . Volleys Fired 85 | 17 11 57 Largest 2 | 2 2 2 Hottest 70 | 70 70 70 Shots Fired 151 | 34 22 95 Gun 126 | 34 22 70 Cannon 24 | . . 24 Launcher . | . . . Special 1 | . . 1 Kinetic 111 | 17 11 83 Thermal 40 | 17 11 12 Explosive . | . . . Electromagnetic . | . . . Robot Hit Streak 33 | 7 9 33 Robot Miss Streak 7 | 2 7 3 Penetration Max . | . . . Secondary Targets 1 | . 1 . Max Gunslinging Chain 1 | . 1 . Shots Hit Robots 103 | 25 10 68 Core Hits 42 | 9 4 29 Critical Kills . | . . . Critical Parts Destroyed . | . . . Critical Strikes 2 | 1 . 1 Burn 1 | 1 . . Blast 1 | . . 1 Melee Attacks . | . . . Impact . | . . . Slashing . | . . . Piercing . | . . . Sneak Attacks . | . . . Combat Hostiles . | . . . Follow-up Attacks . | . . . Damage Inflicted 1335 | 222 122 991 Guns 996 | 222 113 661 Cannons 324 | . . 324 Explosions . | . . . Melee . | . . . Ramming 9 | . 9 . Kinetic 1070 | 111 38 921 Thermal 256 | 111 75 70 Explosive . | . . . Electromagnetic . | . . . Impact . | . . . Slashing . | . . . Piercing . | . . . Highest Corruption . | . . . Average Corruption . | . . . Corruption Purged . | . . . Corruption Blocked . | . . . Overload Shots . | . . . Overflow Damage . | . . . Projectiles . | . . . Explosions . | . . . Melee . | . . . Knockbacks 5 | . . 5 Impact . | . . . Kinetic 5 | . . 5 Secondary . | . . . Self-Inflicted Damage . | . . . Shots . | . . . Rammed 1 | . 1 . Targets Rammed 1 | . 1 . Kicked . | . . . Crushed . | . . . Highest Temperature 110 | 90 110 5 Average Temperature 33 | 31 41 3 Received Heat Transfer 213 | . . 213 Siege Activations . | . . . Martial Activations . | . . . Shielding Activations . | . . . Robots Disrupted . | . . . Combat Hostiles . | . . . Robots Corrupted . | . . . Combat Hostiles . | . . . Parts Fried . | . . . Impact Corruptions . | . . . Robots Melted . | . . . Combat Hostiles . | . . . Parts Melted 2 | 2 . . Heat Transferred 839 | 407 222 210 Parts Sabotaged . | . . . Parts Stolen . | . . . Parts Stripped . | . . . Power Chain Reactions . | . . . Alert | -11 -10 -10 ------- Run | Yrd Mat Sub Maximum Alert Level . | . . . Low Security (%) 100 | 100 100 . Level 1 . | . . . Level 2 . | . . . Level 3 . | . . . Level 4 . | . . . Level 5 . | . . . High Security . | . . . Max Security . | . . . Peak Influence 40 | 10 40 . Initial . | . . . Average 5 | . 10 . Influence Increases 312 | 25 92 195 Destroy 0b10 Robot/C 140 | . 60 80 Destroy 0b10 Robot/NC 25 | 25 . . Destroy Leader 20 | . 10 10 Successful Hack 7 | . 7 . Lose Combat Pursuer 120 | . 15 105 Influence Decreases 288 | 25 77 186 Entered New Map 8 | . . 8 Time Decay 213 | 25 77 111 Lost Part 67 | . . 67 Squads Dispatched . | . . . Investigation . | . . . Extermination . | . . . Reinforcement . | . . . Assault . | . . . Garrison . | . . . Intercept . | . . . Searches Triggered . | . . . Construction Impeded . | . . . Haulers Reinforced . | . . . Active Scanning Responses . | . . . Cargo Convoy Interrupts . | . . . Stealth | -11 -10 -10 --------- Run | Yrd Mat Sub Distress Signals 3 | . 3 . Communications Jammed . | . . . Distress Signals . | . . . Times Spotted 33 | . 13 20 Peak Tracking Total 8 | . 8 4 Tactical Retreats 3 | . 1 2 Traps | -11 -10 -10 ------- Run | Yrd Mat Sub Traps Triggered 5 | . 1 4 Indirectly . | . . . Trap Hack Attempts . | . . . Triggered . | . . . Disarmed . | . . . Reprogrammed . | . . . Reused . | . . . Traps Extracted . | . . . Installed . | . . . Triggered . | . . . Machines | -11 -10 -10 ---------- Run | Yrd Mat Sub Machines Disabled 1 | . . 1 Max in Single Turn 1 | . . 1 Machines Repaired . | . . . Machines Dismantled . | . . . Machines Sabotaged . | . . . Overloaded Fab Kills . | . . . Hacking | -11 -10 -10 --------- Run | Yrd Mat Sub Machines Accessed 2 | . 1 1 Terminals 1 | . 1 . Fabricators . | . . . Repair Stations . | . . . Recycling Units . | . . . Scanalyzers . | . . . Garrison Access . | . . . Total Hacks 11 | . 2 9 Successful 10 | . 1 9 Failed 1 | . 1 . Catastrophic . | . . . Database Lockouts . | . . . Manual 2 | . 2 . Terminals 2 | . 2 . Fabricators . | . . . Repair Stations . | . . . Recycling Units . | . . . Scanalyzers . | . . . Garrison Access . | . . . Terminal Hacks 10 | . 1 9 Record 8 | . . 8 Part Schematic 1 | . 1 . Proto ID Catalog 1 | . . 1 Fabricator Hacks . | . . . Repair Station Hacks . | . . . Recycling Unit Hacks . | . . . Scanalyzer . | . . . Garrison Access Hacks . | . . . Unauthorized Hacks . | . . . Terminals . | . . . Fabricators . | . . . Repair Stations . | . . . Recycling Units . | . . . Scanalyzers . | . . . Garrison Access . | . . . Data Cores Recovered . | . . . Used . | . . . Hacking Detections 1 | . 1 . Full Trace Events . | . . . Feedback Events . | . . . Feedback Blocked . | . . . Robot Schematics Acquired . | . . . Robots Built . | . . . Authchips . | . . . Time . | . . . Total Robot Build Rating . | . . . Part Schematics Acquired 1 | . 1 . Parts Built . | . . . Authchips . | . . . Time . | . . . Total Part Build Rating . | . . . Parts Repaired . | . . . Time . | . . . Parts Recycled . | . . . Recycled Matter . | . . . Retrieved Matter . | . . . Retrieved Components . | . . . Parts Scanalyzed . | . . . Part Schematics Acquired . | . . . Parts Damaged . | . . . Bothacking | -11 -10 -10 ------------ Run | Yrd Mat Sub Used RIF Installer . | . . . Robots Hacked . | . . . Non-combat . | . . . Combat . | . . . Robot Hacks Applied . | . . . Relay Couplers Released . | . . . Fabnet Peak Effective % . | . . . Robots Rewired . | . . . Allies Hacked . | . . . Hacks Repelled . | . . . Allies | -11 -10 -10 -------- Run | Yrd Mat Sub Total Allies . | . . . Largest Group . | . . . Highest-Rated Group . | . . . Highest-Rated Ally . | . . . Total Orders . | . . . Ally Attacks . | . . . Total Damage . | . . . Kills . | . . . Allies Corrupted . | . . . Allies Melted . | . . . Intel | -11 -10 -10 ------- Run | Yrd Mat Sub Active Infowar (turns) 368 | 52 285 31 Seismic 368 | 52 285 31 Robot Analysis Total . | . . . Derelict Logs Recovered 1 | . . 1 Drone Launches . | . . . Drone Recoveries . | . . . Exploration | -11 -10 -10 ------------- Run | Yrd Mat Sub Turns Passed 4081 | 312 285 3484 Spaces Moved 1420 | 158 152 1110 Core 3 | 3 . . Treads 456 | 155 152 149 Legs . | . . . Wheels 961 | . . 961 Hover . | . . . Flight . | . . . Fastest Speed 50 | 50 160 80 Average Speed 263 | 157 160 293 Slowest Speed 380 | 160 160 380 Overloaded Moves . | . . . Propulsion Burnouts . | . . . Robots Hopped . | . . . Potential Cave-ins . | . . . Cave-ins Triggered . | . . . Exploration Rate (%) 34 | 10 35 59 Regions Visited 2 Branch Regions 1 Pre-discovered Areas . | . . . Known Exits Taken . | . . . Unknown Exits Taken 2 | 1 1 . Scrap Searched 7 | . . 7 Spaces Dug . | . . . Terrain Destroyed . | . . . Melee . | . . . Projectile . | . . . AOE . | . . . Terrain Rammed . | . . . Walls Destroyed . | . . . Machines Disabled . | . . . Actions | -11 -10 -10 --------- Run | Yrd Mat Sub Total 1609 | 187 173 1249 Wait 29 | 2 6 21 Move 1418 | 157 151 1110 Hop . | . . . Pick Up 39 | 4 2 33 Fast Attach 13 | 7 1 5 Attach 8 | . . 8 Detach . | . . . Swap 4 | . 1 3 Drop 12 | . . 12 Fire 85 | 17 11 57 Melee . | . . . Ram . | . . . Kick . | . . . Crush 1 | . 1 . Escape Stasis . | . . . Rewire . | . . . Trap . | . . . Miscellaneous . | . . . Route ------- -11/Scrapyard -10/Materials (discovered 2 exits: [*Mat] / *Sub) -10/Subcaves (discovered 1 exit: [*Mat]) History --------- Turn | Location | Event 6 | -11/Scrapyard | Discovered new exit (range 16) 313 | -11/Scrapyard | Entered Materials 314 | -10/Materials | Build established: Mutant 467 | -10/Materials | Discovered new exit (range 12) 586 | -10/Materials | Discovered new exit (range 8) 598 | -10/Materials | Entered Subcaves 669 | -10/Subcaves | Shifting Twisted Machinery released Battle Rifle 674 | -10/Subcaves | Shifting Twisted Machinery released Sub. Machine Gun 790 | -10/Subcaves | Learned Materials terminal intel 947 | -10/Subcaves | Lost 3 parts (1n2w) 960 | -10/Subcaves | Shifting Twisted Machinery released Battle Rifle 960 | -10/Subcaves | Shifting Twisted Machinery released Sub. Beam Cannon 1003 | -10/Subcaves | Discovered new exit (range 11) 1053 | -10/Subcaves | Visited 4L-MR0's lab 1070 | -10/Subcaves | Found Arachnoskeleton 1142 | -10/Subcaves | Disturbed a concealed Subdweller 1418 | -10/Subcaves | Curiously followed by a Cobbler waking with a query about "LVR3C" 1431 | -10/Subcaves | Build established: Hauler-Mutant 1746 | -10/Subcaves | Core integrity fell below 50% 4070 | -10/Subcaves | A Subdweller sparked back to life 4070 | -10/Subcaves | A Subdweller sparked back to life 4070 | -10/Subcaves | A Subdweller sparked back to life 4074 | -10/Subcaves | Core integrity fell below 20% 4082 | -10/Subcaves | Destroyed by C8-9GE(R) with Subdweller Laser Last Messages --------------- 03015_ Acquired Multitool. 03020_ Acquired Wheel. 03031_ Battle Cannon destroyed. 03037_ Lgt. Treads destroyed. 03037_ S-10 Pest destroyed. 03041_ Lgt. Assault Rifle fries itself beyond repair. 03049_ S-10 Pest destroyed. 03055_ Subatomizers dissect the Wheel. 03061_ Acquired 21 matter. 03062_ Flight Unit fries itself beyond repair. 03065_ Lgt. Assault Rifle fries itself beyond repair. 03069_ Subatomizers dissect the Wheel. 03072_ Acquired Wheel. 04070_ Y4-OYW(R) creaks and sparks as it begins to move. 04070_ PS-0C8(R) creaks and sparks as it begins to move. 04070_ 1K-S3M(R) creaks and sparks as it begins to move. 04071_ Multitool destroyed. 04072_ Broken Sub. Power Source destroyed. 04079_ Wheel destroyed. 04082_ Y4-OYW(R) destroyed. Map ----- +----------------------------------------------------+ | ???????????# ## #???????????????? | | ???????????### ### ##??????????????? | | ##?????????????####### #? #??????????????? | | ?????????????????????### #? ##??????????????? | | ???????????????????????## #?# #???##?????????? | | ????????????????????????# #? #?## ##????????? | | ??????????????????????### #### #?? #????????? | | ?????????????????????## #### ##???????? | | ?????????????????????# ## ???? | | ?????????????????????## ?????? | | ??????????????????????## ##????????? | | ???????????????????????## ##?????????? | | ????????????????????????### ## ##??????????? | | ??????????????????????????###### #???????????? | | ???????????????????????????????# ##???????????? | | ???????????????????????????????# #????????????? | | ??????????????????????????????### #????????????? | | ?????????????????????????????## #????????????? | | ????????????????????????????## #????????????? | | ????????????????????????????# ## #???????????? | | ????????????????????????????# ## #???????????? | | ???????????????????????<##### ## #???????????? | | ??????????????????????## # ######???????????? | | ??????????????????????# R << #????????????????? | | ??????????????????????#R ##????????????????? | | ??????????????????????<<&@ #?????????????????? | | ??????????????????????#*%&! #?????????????????? | | ####??????????????????#### ###??????????#??????? | | "" ####??????????????????# ##????????####"##????? | | "" ##????????????????? R#####????#" """"##???? | | " #???????????????? ????""""""" ####? | | " #???????????????? ?????? """" ?? | | " #???????????????? ???????#""" ???? | | " #???????????????# ??####?# ####?# | | ### #???????????????## ## ?##""#?#""" ### | | ##???#??????????????########## ## "#?#"" """ | | ###????????????????# ## ## ### #### """"" | | ##???????????????# #?# ^ # ## "### " | | ####?????????#### ###"^" " " #?## ## | | #####?##### ## ## " ""#??#### | | ## ### ### #"^ =### "##?????? | | # && ## "" * ##""##??????? | | ## ## &%&! &&"""#???????? | | ?# ## ### ####&%& ^#??????? | | ?# #####?#### ##??#### # "" #####??????? | | ?###????????#######??????########""####??????????? | | ?????????????????????????????????###?????????????? | | ?????????????????????????????????????????????????? | | ?????????????????????????????????????????????????? | | ?????????????????????????????????????????????????? | +----------------------------------------------------+ Best States ------------- Heat Dissipation 39 Energy Generation 15 Energy Capacity 250 Matter Stores 300 Matter Capacity 300 Sight Range 16 Terrain Scan Density 10 Armor Coverage 100 Resistance: TH 10 Evasion (%) 41 Recoil Reduction 2 Item Schematics ----------------- Hcp. Storage Unit | -10/Materials | Hacked Robot Schematics ------------------ None Fabricated ------------ Nothing Repaired ---------- Nothing Alien Tech Used ----------------- None Achievements -------------- None Challenges ------------ None Game ------ Seed CentriumBlanketPower Manual? 0 Play Time 00:10:59 Cumulative 248.8 hours Start 2025.05.09 @ 17:26:24 End 2025.05.09 @ 17:36:39 Sessions 1 Manual Loads 0 Difficulty Rogue Special Mode None Game No. 168 Rogue 168 Adventurer 0 Explorer 0 Win Type - Total 13 Types 6/0/5/1/0/0/0/1/0/0 Lore% 76 Gallery% 70 Achievement% 73 Wizard Run 0 Options --------- Layout 0 ASCII 0 Keyboard 0 Movement Mouse Keybinds 0 Fullscreen 2 Font 24/Smallcaps Map View 76x50 Zoom Use 0% Tactical HUD 1 Map Filters NONE Filters NONE Steam 1 RUN: 6b8c0e63-b137-40fc-a515-06bd860384e1